Cogmind - Beta 15 @@@ ROGUE MODE // 2025.07.18 @ 17:13:09 Player: winnking222 Result: Destroyed by G-47 Trooper with Particle Gun Performance ------------- Evolutions (0) 0 Regions Visited (2) 400 Robots Destroyed (24) 120 Value Destroyed (389) 389 Prototype IDs (4) 80 Alien Tech Used (0) 0 Bonus (14) 14 TOTAL SCORE: 1003 Bonus ------- Follower Combat Kills 14 Cogmind --------- Core Integrity 0/250 Matter 281/300 Energy 250/250 System Corruption 1% Temperature Cool (24) Movement Core (800) Ox15 Location -10/Mines Parts ------- > --- POWER (1) -------- Ion Engine > --- PROPULSION (2) --- (None) > --- UTILITY (2) ------ High-capacity Storage Unit > --- WEAPON (2) ------- Light Assault Rifle Light Assault Rifle > --- INVENTORY (20) --- Ion Engine Heat Sink Large Matter Pod (150) Seismic Detector Seismic Detector Seismic Detector Beam Cannon Light Assault Rifle Light Assault Rifle Grenade Launcher Mining Laser Proton Bomb Trap Proton Bomb Trap Proton Bomb Trap Proton Bomb Trap Proton Bomb Trap Peak State ------------ > --- POWER ------------ Ion Engine > --- PROPULSION ------- Light Treads Light Treads > --- UTILITY ---------- High-capacity Storage Unit Seismic Detector > --- WEAPON ----------- Assault Rifle Light Assault Rifle > --- INVENTORY -------- Ion Engine Heat Sink Large Matter Pod Seismic Detector Seismic Detector Seismic Detector Beam Cannon Light Assault Rifle Light Assault Rifle Grenade Launcher [Rating: 8] Favorites ----------- Power Ion Engine Engine Ion Engine Propulsion Light Treads Treads Light Treads Utility Seismic Detector Device Seismic Detector Storage High-capacity Storage Unit Weapon Light Assault Rifle Ballistic Gun Light Assault Rifle Build | -11 -10 -10 ------- Run | Yrd Mat Min Slots Evolved . | . . . Power . | . . . Propulsion . | . . . Utility . | . . . Weapon . | . . . Parts Attached 11 | 7 2 2 Power 1 | 1 . . Engine 1 | 1 . . Core . | . . . Reactor . | . . . Propulsion 2 | 2 . . Treads 2 | 2 . . Leg . | . . . Wheel . | . . . Hover . | . . . Flight . | . . . Utility 4 | 2 2 . Device 1 | 1 . . Storage 3 | 1 2 . Processor . | . . . Hackware . | . . . Protection . | . . . Artifact . | . . . Weapon 4 | 2 . 2 Energy Gun . | . . . Energy Cannon . | . . . Ballistic Gun 4 | 2 . 2 Ballistic Cannon . | . . . Launcher . | . . . Special Weapon . | . . . Impact Weapon . | . . . Slashing Weapon . | . . . Piercing Weapon . | . . . Special Melee Weapon . | . . . Unidentified Prototypes . | . . . Parts Lost 5 | . . 5 Power . | . . . Propulsion 2 | . . 2 Utility 1 | . . 1 Weapon 2 | . . 2 Highest Loss Streak 5 | . . 5 To Critical Strikes . | . . . Average Backups 10 | 2 8 12 Power . | . 1 1 Propulsion . | . . . Utility 4 | . 4 5 Weapon 4 | . 3 6 Tool/Special . | . . . Unused Backups 12 | . 1 11 Power 1 | . . 1 Propulsion . | . . . Utility 6 | . 1 5 Weapon 5 | . . 5 Tool/Special . | . . . Average Slot Usage (%) 91 | . 100 81 Engine 14 | . 14 14 Treads 22 | . 28 16 Device 11 | . 14 8 Storage 14 | . 14 14 Ballistic Gun 27 | . 28 27 Peak Build Rating 8 | 7 8 8 Average Rating 7 | 4 7 6 On Entrance 5 | . 7 8 Naked Turns . | . . . Heaviest Build 49 | 14 49 49 Greatest Support 40 | 40 40 40 Greatest Overweight (x) 15 | 1 1 15 Average Overweight (x) 1 | . . 3 Largest Inventory Capacity 20 | 8 20 20 Average Capacity 17 | 7 15 20 Most Carried 18 | 5 12 18 Average Carried 11 | 3 8 15 Final Capacity 20 | 8 20 20 Final Carried 16 | 4 12 16 Class Distribution -------------------- 100% | Mutant Dominant Class ---------------- Mutant | -10/Materials Mutant | -10/Mines Resources | -11 -10 -10 ----------- Run | Yrd Mat Min Matter Collected 755 | 298 402 55 Remotely . | . . . Salvage Created 571 | 66 450 55 Parts 51 | 11 37 3 Haulers Intercepted 1 | . 1 . Recyclers Shooed . | . . . Parts Field Recycled . | . . . Retrieved Matter . | . . . Parts Self-Destructed . | . . . Prevented . | . . . Kills | -11 -10 -10 ------- Run | Yrd Mat Min Combat Hostiles Destroyed 13 | . 11 2 Guns 13 | . 11 2 Classes Destroyed 9 | 1 7 1 Worker 2 | . 1 1 Builder 2 | . 1 1 Tunneler 3 | 3 . . Hauler 1 | . 1 . Operator 1 | . 1 . Watcher 2 | . 2 . Swarmer 7 | . 6 1 Grunt 5 | . 5 . Demolisher 1 | . . 1 Best Kill Streak 3 | 2 3 2 Combat Bots Only 3 | . 3 1 Max Kills in Single Turn 1 | 1 1 1 Gunslinging . | . . . Exploded . | . . . Melee . | . . . Uniques/NPCs Destroyed . | . . . Combat | -11 -10 -10 -------- Run | Yrd Mat Min Hostile Shots Fired 85 | . 61 24 Missed 29 | . 24 5 Hits 56 | . 37 19 Projectile 56 | . 37 19 AOE 8 | . . 8 Damage Taken 885 | . 366 519 Core 261 | . 45 216 Absorbed by Shields . | . . . Core Remaining (%) 100 | 100 . . Volleys Fired 77 | 7 55 15 Largest 2 | 2 2 2 Hottest 40 | 40 40 40 Shots Fired 155 | 14 110 31 Gun 155 | 14 110 31 Cannon . | . . . Launcher . | . . . Special . | . . . Kinetic 155 | 14 110 31 Thermal . | . . . Explosive . | . . . Electromagnetic . | . . . Robot Hit Streak 12 | 8 12 8 Robot Miss Streak 5 | 1 5 2 Penetration Max . | . . . Secondary Targets 4 | . 3 1 Max Gunslinging Chain 1 | . 1 1 Shots Hit Robots 89 | 11 59 19 Core Hits 38 | 4 26 8 Critical Kills . | . . . Critical Parts Destroyed 1 | . . 1 Critical Strikes 1 | . . 1 Destroy 1 | . . 1 Melee Attacks . | . . . Impact . | . . . Slashing . | . . . Piercing . | . . . Sneak Attacks . | . . . Combat Hostiles . | . . . Follow-up Attacks . | . . . Damage Inflicted 920 | 123 637 160 Guns 911 | 123 628 160 Cannons . | . . . Explosions . | . . . Melee . | . . . Ramming 9 | . 9 . Kinetic 911 | 123 628 160 Thermal . | . . . Explosive . | . . . Electromagnetic . | . . . Impact . | . . . Slashing . | . . . Piercing . | . . . Highest Corruption 1 | . 1 1 Average Corruption 1 | . 1 1 Corruption Purged . | . . . Corruption Blocked . | . . . Effects 15 | . 7 8 Message Errors 8 | . 3 5 Matter Fused 4 | . 3 1 Heat Flow Errors 1 | . 1 . Energy Discharges 1 | . . 1 Misfires 1 | . . 1 Overload Shots . | . . . Overflow Damage . | . . . Projectiles . | . . . Explosions . | . . . Melee . | . . . Knockbacks . | . . . Impact . | . . . Kinetic . | . . . Secondary . | . . . Self-Inflicted Damage . | . . . Shots . | . . . Rammed 1 | . 1 . Targets Rammed 2 | . 2 . Kicked . | . . . Crushed 1 | . 1 . Highest Temperature 201 | . 201 15 Average Temperature 37 | . 40 10 Received Heat Transfer 147 | . 111 36 Siege Activations . | . . . Martial Activations . | . . . Shielding Activations . | . . . Robots Disrupted . | . . . Combat Hostiles . | . . . Robots Corrupted . | . . . Combat Hostiles . | . . . Parts Fried . | . . . Impact Corruptions . | . . . Robots Melted . | . . . Combat Hostiles . | . . . Parts Melted . | . . . Heat Transferred . | . . . Parts Sabotaged . | . . . Parts Stolen . | . . . Parts Stripped . | . . . Power Chain Reactions . | . . . Alert | -11 -10 -10 ------- Run | Yrd Mat Min Maximum Alert Level . | . . . Low Security (%) 100 | 100 100 100 Level 1 . | . . . Level 2 . | . . . Level 3 . | . . . Level 4 . | . . . Level 5 . | . . . High Security . | . . . Max Security . | . . . Peak Influence 137 | 5 137 74 Initial . | . . . Average 17 | 1 27 5 Influence Increases 435 | 15 306 114 Destroy 0b10 Robot/C 300 | . 220 80 Destroy 0b10 Robot/NC 55 | 15 30 10 Destroy Leader 66 | . 46 20 Allied During Kill 4 | . . 4 Successful Hack 10 | . 10 . Influence Decreases 435 | 15 306 114 Time Decay 435 | 15 306 114 Squads Dispatched 1 | . 1 . Investigation . | . . . Extermination . | . . . Reinforcement 1 | . 1 . Assault . | . . . Garrison . | . . . Intercept . | . . . Searches Triggered . | . . . Construction Impeded . | . . . Haulers Reinforced . | . . . Active Scanning Responses . | . . . Cargo Convoy Interrupts . | . . . Stealth | -11 -10 -10 --------- Run | Yrd Mat Min Distress Signals . | . . . Communications Jammed . | . . . Distress Signals . | . . . Times Spotted 48 | . 21 27 Peak Tracking Total 22 | . 4 22 Tactical Retreats . | . . . Traps | -11 -10 -10 ------- Run | Yrd Mat Min Traps Triggered 1 | . 1 . Indirectly . | . . . Trap Hack Attempts . | . . . Triggered . | . . . Disarmed . | . . . Reprogrammed . | . . . Reused . | . . . Traps Extracted . | . . . Installed . | . . . Triggered . | . . . Most Traps Carried 5 | . . 5 Machines | -11 -10 -10 ---------- Run | Yrd Mat Min Machines Disabled . | . . . Max in Single Turn . | . . . Machines Repaired . | . . . Machines Dismantled . | . . . Machines Sabotaged . | . . . Overloaded Fab Kills . | . . . Hacking | -11 -10 -10 --------- Run | Yrd Mat Min Machines Accessed 3 | . 3 . Terminals 3 | . 3 . Fabricators . | . . . Repair Stations . | . . . Recycling Units . | . . . Scanalyzers . | . . . Garrison Access . | . . . Total Hacks 8 | . 8 . Successful 5 | . 5 . Failed 3 | . 3 . Catastrophic . | . . . Database Lockouts . | . . . Manual . | . . . Terminals 8 | . 8 . Fabricators . | . . . Repair Stations . | . . . Recycling Units . | . . . Scanalyzers . | . . . Garrison Access . | . . . Terminal Hacks 5 | . 5 . Prototype ID Bank 2 | . 2 . Locate Traps 2 | . 2 . Zone Layout 1 | . 1 . Fabricator Hacks . | . . . Repair Station Hacks . | . . . Recycling Unit Hacks . | . . . Scanalyzer . | . . . Garrison Access Hacks . | . . . Unauthorized Hacks . | . . . Terminals . | . . . Fabricators . | . . . Repair Stations . | . . . Recycling Units . | . . . Scanalyzers . | . . . Garrison Access . | . . . Data Cores Recovered 1 | . 1 . Used . | . . . Hacking Detections 2 | . 2 . Full Trace Events . | . . . Feedback Events . | . . . Feedback Blocked . | . . . Robot Schematics Acquired . | . . . Robots Built . | . . . Authchips . | . . . Time . | . . . Total Robot Build Rating . | . . . Part Schematics Acquired . | . . . Parts Built . | . . . Authchips . | . . . Time . | . . . Total Part Build Rating . | . . . Parts Repaired . | . . . Time . | . . . Parts Recycled . | . . . Recycled Matter . | . . . Retrieved Matter . | . . . Retrieved Components . | . . . Parts Scanalyzed . | . . . Part Schematics Acquired . | . . . Parts Damaged . | . . . Bothacking | -11 -10 -10 ------------ Run | Yrd Mat Min Used RIF Installer . | . . . Robots Hacked . | . . . Non-combat . | . . . Combat . | . . . Robot Hacks Applied . | . . . Relay Couplers Released . | . . . Fabnet Peak Effective % . | . . . Robots Rewired . | . . . Allies Hacked . | . . . Hacks Repelled . | . . . Allies | -11 -10 -10 -------- Run | Yrd Mat Min Total Allies 1 | . . 1 Largest Group 1 | . . 1 Highest-Rated Group 31 | . . 31 Highest-Rated Ally 31 | . . 31 Total Orders . | . . . Ally Attacks 5 | . . 5 Total Damage 60 | . . 60 Kills 2 | . . 2 Allies Corrupted . | . . . Allies Melted . | . . . Intel | -11 -10 -10 ------- Run | Yrd Mat Min Active Infowar (turns) 2280 | 6 1567 707 Seismic 2280 | 6 1567 707 Robot Analysis Total . | . . . Derelict Logs Recovered 2 | . . 2 Drone Launches . | . . . Drone Recoveries . | . . . Exploration | -11 -10 -10 ------------- Run | Yrd Mat Min Turns Passed 2897 | 96 1567 1234 Spaces Moved 1055 | 50 655 350 Core 80 | 18 . 62 Treads 975 | 32 655 288 Legs . | . . . Wheels . | . . . Hover . | . . . Flight . | . . . Fastest Speed 50 | 50 160 240 Average Speed 247 | 121 207 339 Slowest Speed 800 | 160 240 800 Overloaded Moves . | . . . Propulsion Burnouts . | . . . Robots Hopped . | . . . Potential Cave-ins . | . . . Cave-ins Triggered . | . . . Exploration Rate (%) 61 | 4 90 90 Regions Visited 2 Branch Regions 1 Pre-discovered Areas . | . . . Known Exits Taken . | . . . Unknown Exits Taken 2 | 1 1 . Scrap Searched 1 | . . 1 Spaces Dug . | . . . Terrain Destroyed . | . . . Melee . | . . . Projectile . | . . . AOE . | . . . Terrain Rammed . | . . . Walls Destroyed . | . . . Machines Disabled . | . . . Actions | -11 -10 -10 --------- Run | Yrd Mat Min Total 1208 | 72 763 373 Wait 37 | . 37 . Move 1053 | 49 654 350 Hop . | . . . Pick Up 25 | 9 10 6 Fast Attach 2 | 2 . . Attach 7 | 5 . 2 Detach . | . . . Swap 2 | . 2 . Drop 3 | . 3 . Fire 77 | 7 55 15 Melee . | . . . Ram . | . . . Kick . | . . . Crush 2 | . 2 . Escape Stasis . | . . . Rewire . | . . . Trap . | . . . Miscellaneous . | . . . Route ------- -11/Scrapyard -10/Materials (discovered 6 exits: [*Mat x3] / [*Min x2] / [*Sub]) -10/Mines (discovered 2 exits: [*Mat x2]) History --------- Turn | Location | Event 10 | -11/Scrapyard | Discovered new exit (range 15) 97 | -11/Scrapyard | Entered Materials 302 | -10/Materials | Build established: Mutant 443 | -10/Materials | Discovered new exit (range 5) 502 | -10/Materials | Discovered new exit (range 3) 636 | -10/Materials | Discovered new exit (range 14) 763 | -10/Materials | Discovered new exit (range 7) 1124 | -10/Materials | Discovered new exit (range 7) 1553 | -10/Materials | Discovered new exit (range 15) 1664 | -10/Materials | Entered Mines 1742 | -10/Mines | Received a Mining Laser from a helpful Derelict 1838 | -10/Mines | Discovered new exit (range 6) 2163 | -10/Mines | Found a hidden stash of uninstalled traps 2310 | -10/Mines | Discovered new exit (range 8) 2354 | -10/Mines | Assembled infested the area 2374 | -10/Mines | Core integrity fell below 50% 2376 | -10/Mines | Core integrity fell below 20% 2402 | -10/Mines | Lost 5 parts (2n1u2w) 2660 | -10/Mines | Learned Materials stockpile data 2898 | -10/Mines | Destroyed by G-47 Trooper with Particle Gun Last Messages --------------- 02403_ The unstable cave ceiling collapses. 02404_ Acquired 2 matter. 02406_ U-05 Engineer builds a Wall. 02409_ The unstable cave ceiling collapses. 02411_ U-05 Engineer builds a Wall. 02413_ The unstable cave ceiling collapses. 02415_ U-05 Engineer lays Concrete. 02416_ U-05 Engineer builds a Wall. 02420_ The unstable cave ceiling collapses. 02447_ K-01 Serf collects debris. 02450_ K-01 Serf destroyed. 02452_ Acquired 23 matter. 02456_ R-06 Scavenger collects Wheel. 02472_ K-01 Serf collects debris. 02581_ A derelict is hurriedly installing traps. 02660_ Acquired derelict log, extracted data. Data stored: Materials stockpile data. 02672_ <,J=BSF:OW